[Event "Titled Tuesday Blitz February 21 Early 2023"]
[White "Souleidis, Georgios"]
[Black "Martin Barcelo, Carles"]
[WhiteFideId "4206827"]
[BlackFideId "24561444"]
[WhiteElo "2419"]
[BlackElo "2221"]
[Result "1-0"]
[Round "01"]
[TimeControl "180+2"]
[Date "2023.02.21"]
[WhiteClock "0:00:09"]
[BlackClock "0:00:02"]

1. e4 {[%clk 0:03:00]}  e6 {[%clk 0:02:23]} 2. Qe2 {[%clk 0:02:56]}  c5 {[%clk 0:02:21]} 3. g3 {[%clk 0:02:51]}  Nc6 {[%clk 0:02:22]} 4. Nf3 {[%clk 0:02:50]}  g6 {[%clk 0:02:14]} 5. Bg2 {[%clk 0:02:50]}  Bg7 {[%clk 0:02:14]} 6. O-O {[%clk 0:02:48]}  Nge7 {[%clk 0:02:14]} 7. c3 {[%clk 0:02:47]}  O-O {[%clk 0:02:13]} 8. Rd1 {[%clk 0:02:42]}  d5 {[%clk 0:02:13]} 9. d3 {[%clk 0:02:33]}  e5 {[%clk 0:02:08]} 10. Bg5 {[%clk 0:02:21]}  Be6 {[%clk 0:01:58]} 11. Na3 {[%clk 0:02:10]}  Qd7 {[%clk 0:01:54]} 12. Be3 {[%clk 0:01:24]}  d4 {[%clk 0:01:51]} 13. cxd4 {[%clk 0:01:24]}  cxd4 {[%clk 0:01:50]} 14. Bd2 {[%clk 0:01:23]}  Rac8 {[%clk 0:01:40]} 15. Ng5 {[%clk 0:01:19]}  Bg4 {[%clk 0:01:36]} 16. f3 {[%clk 0:01:15]}  Be6 {[%clk 0:01:35]} 17. h4 {[%clk 0:01:09]}  b6 {[%clk 0:01:00]} 18. Kh2 {[%clk 0:01:06]}  f5 {[%clk 0:00:55]} 19. Bh3 {[%clk 0:01:00]}  Kh8 {[%clk 0:00:51]} 20. Nxe6 {[%clk 0:01:00]}  Qxe6 {[%clk 0:00:52]} 21. b4 {[%clk 0:00:44]}  h6 {[%clk 0:00:48]} 22. b5 {[%clk 0:00:44]}  Nb8 {[%clk 0:00:42]} 23. Nc4 {[%clk 0:00:42]}  Nd7 {[%clk 0:00:39]} 24. Bb4 {[%clk 0:00:41]}  Qf6 {[%clk 0:00:27]} 25. exf5 {[%clk 0:00:20]}  gxf5 {[%clk 0:00:25]} 26. Re1 {[%clk 0:00:20]}  Rce8 {[%clk 0:00:13]} 27. Nd6 {[%clk 0:00:15]}  Rd8 {[%clk 0:00:09]} 28. Rac1 {[%clk 0:00:15]}  Nd5 {[%clk 0:00:09]} 29. Bd2 {[%clk 0:00:14]}  Qxd6 {[%clk 0:00:08]} 30. Rc6 {[%clk 0:00:14]}  Qe7 {[%clk 0:00:07]} 31. Bxh6 {[%clk 0:00:14]}  N5f6 {[%clk 0:00:04]} 32. Bxg7+ {[%clk 0:00:14]}  Kxg7 {[%clk 0:00:05]} 33. Bxf5 {[%clk 0:00:13]}  Rg8 {[%clk 0:00:05]} 34. g4 {[%clk 0:00:13]}  Rh8 {[%clk 0:00:05]} 35. h5 {[%clk 0:00:13]}  Nxh5 {[%clk 0:00:04]} 36. gxh5 {[%clk 0:00:13]}  Rxh5+ {[%clk 0:00:05]} 37. Bh3 {[%clk 0:00:11]}  Rdh8 {[%clk 0:00:05]} 38. Qg2+ {[%clk 0:00:11]}  Kf7 {[%clk 0:00:03]} 39. Qg6+ {[%clk 0:00:10]}  Kf8 {[%clk 0:00:03]} 40. Rc8+ {[%clk 0:00:08]}  Qd8 {[%clk 0:00:02]} 41. Rxd8+ {[%clk 0:00:09]}  Ke7 {[%clk 0:00:03]} 42. Rxd7+ {[%clk 0:00:09]}  Kf8 {[%clk 0:00:02]} 43. Qf7# {[%clk 0:00:09]} 1-0


[Site "https://www.chess.com"]

[Event "Titled Tuesday Blitz February 21 Early 2023"]
[White "Melikhov, Evgeny V."]
[Black "Megalios, Konstantinos"]
[WhiteFideId "4122046"]
[BlackFideId "4238044"]
[WhiteElo "2269"]
[BlackElo "2372"]
[Result "0-1"]
[Round "01"]
[TimeControl "180+2"]
[Date "2023.02.21"]
[WhiteClock "0:00:01"]
[BlackClock "0:00:05"]

1. d4 {[%clk 0:03:00]}  Nf6 {[%clk 0:02:58]} 2. c4 {[%clk 0:02:59]}  c5 {[%clk 0:02:56]} 3. d5 {[%clk 0:02:59]}  b5 {[%clk 0:02:56]} 4. cxb5 {[%clk 0:03:00]}  a6 {[%clk 0:02:57]} 5. b6 {[%clk 0:03:00]}  d6 {[%clk 0:02:55]} 6. Nc3 {[%clk 0:03:01]}  g6 {[%clk 0:02:55]} 7. a4 {[%clk 0:03:01]}  Qxb6 {[%clk 0:02:54]} 8. a5 {[%clk 0:03:02]}  Qa7 {[%clk 0:02:55]} 9. e4 {[%clk 0:03:01]}  Bg7 {[%clk 0:02:54]} 10. Nf3 {[%clk 0:03:00]}  Bg4 {[%clk 0:02:49]} 11. Qa4+ {[%clk 0:03:00]}  Bd7 {[%clk 0:02:22]} 12. Qc2 {[%clk 0:02:56]}  O-O {[%clk 0:02:21]} 13. Be2 {[%clk 0:02:55]}  Bg4 {[%clk 0:02:14]} 14. O-O {[%clk 0:02:47]}  Nbd7 {[%clk 0:02:13]} 15. Re1 {[%clk 0:02:45]}  Bxf3 {[%clk 0:02:09]} 16. Bxf3 {[%clk 0:02:45]}  Ne8 {[%clk 0:02:10]} 17. Bg5 {[%clk 0:02:43]}  Ne5 {[%clk 0:02:06]} 18. Be2 {[%clk 0:02:41]}  h6 {[%clk 0:02:04]} 19. Be3 {[%clk 0:02:39]}  Rb8 {[%clk 0:01:57]} 20. f4 {[%clk 0:02:12]}  Nd7 {[%clk 0:01:56]} 21. e5 {[%clk 0:01:50]}  dxe5 {[%clk 0:01:13]} 22. f5 {[%clk 0:01:50]}  g5 {[%clk 0:01:13]} 23. Ne4 {[%clk 0:01:48]}  Nd6 {[%clk 0:01:08]} 24. Bxc5 {[%clk 0:01:15]}  Nxc5 {[%clk 0:00:55]} 25. Qxc5 {[%clk 0:01:14]}  Qxc5+ {[%clk 0:00:37]} 26. Nxc5 {[%clk 0:01:14]}  Rxb2 {[%clk 0:00:38]} 27. Bxa6 {[%clk 0:01:07]}  e4 {[%clk 0:00:38]} 28. Nxe4 {[%clk 0:00:50]}  Nxf5 {[%clk 0:00:35]} 29. Reb1 {[%clk 0:00:29]}  Ra8 {[%clk 0:00:22]} 30. Bd3 {[%clk 0:00:19]}  Rd2 {[%clk 0:00:19]} 31. Ra3 {[%clk 0:00:16]}  Bd4+ {[%clk 0:00:17]} 32. Kh1 {[%clk 0:00:16]}  Ne3 {[%clk 0:00:17]} 33. a6 {[%clk 0:00:16]}  Nxg2 {[%clk 0:00:17]} 34. Ng3 {[%clk 0:00:11]}  Nh4 {[%clk 0:00:16]} 35. Be4 {[%clk 0:00:10]}  Be5 {[%clk 0:00:09]} 36. d6 {[%clk 0:00:08]}  Re8 {[%clk 0:00:08]} 37. a7 {[%clk 0:00:06]}  Bxd6 {[%clk 0:00:04]} 38. a8=Q {[%clk 0:00:06]}  Rxa8 {[%clk 0:00:04]} 39. Rxa8+ {[%clk 0:00:06]}  Kg7 {[%clk 0:00:05]} 40. Nf5+ {[%clk 0:00:06]}  Nxf5 {[%clk 0:00:04]} 41. Bxf5 {[%clk 0:00:06]}  Rxh2+ {[%clk 0:00:05]} 42. Kg1 {[%clk 0:00:07]}  Re2 {[%clk 0:00:04]} 43. Bh3 {[%clk 0:00:06]}  h5 {[%clk 0:00:04]} 44. Bg2 {[%clk 0:00:06]}  g4 {[%clk 0:00:04]} 45. Ra5 {[%clk 0:00:06]}  Kh6 {[%clk 0:00:03]} 46. Rab5 {[%clk 0:00:06]}  h4 {[%clk 0:00:03]} 47. R5b2 {[%clk 0:00:06]}  Re5 {[%clk 0:00:02]} 48. Rb5 {[%clk 0:00:06]}  Re3 {[%clk 0:00:02]} 49. R5b3 {[%clk 0:00:05]}  Re5 {[%clk 0:00:01]} 50. Rb5 {[%clk 0:00:05]}  Re3 {[%clk 0:00:01]} 51. Kf2 {[%clk 0:00:04]}  Re5 {[%clk 0:00:02]} 52. Rxe5 {[%clk 0:00:04]}  Bxe5 {[%clk 0:00:03]} 53. Rb7 {[%clk 0:00:04]}  Bf6 {[%clk 0:00:02]} 54. Be4 {[%clk 0:00:03]}  Kg5 {[%clk 0:00:02]} 55. Rb5+ {[%clk 0:00:03]}  Kf4 {[%clk 0:00:03]} 56. Bg2 {[%clk 0:00:02]}  Bd4+ {[%clk 0:00:03]} 57. Kf1 {[%clk 0:00:02]}  h3 {[%clk 0:00:04]} 58. Bb7 {[%clk 0:00:01]}  e6 {[%clk 0:00:04]} 59. Rb4 {[%clk 0:00:01]}  e5 {[%clk 0:00:05]} 0-1


[Site "https://www.chess.com"]

[Event "Titled Tuesday Blitz February 21 Early 2023"]
[White "TheKnightOfBosnia"]
[Black "Delgado Rosas, Fatima Alexandra"]
[BlackFideId "6603963"]
[WhiteElo "2616"]
[BlackElo "1500"]
[Result "1-0"]
[Round "01"]
[TimeControl "180+2"]
[Date "2023.02.21"]
[WhiteClock "0:01:27"]
[BlackClock "0:00:56"]

1. e4 {[%clk 0:03:00]}  Nc6 {[%clk 0:02:57]} 2. g3 {[%clk 0:02:59]}  d5 {[%clk 0:02:55]} 3. exd5 {[%clk 0:02:58]}  Qxd5 {[%clk 0:02:56]} 4. Nf3 {[%clk 0:02:57]}  Bg4 {[%clk 0:02:56]} 5. Bg2 {[%clk 0:02:58]}  Nd4 {[%clk 0:02:56]} 6. Nxd4 {[%clk 0:02:56]}  Qxg2 {[%clk 0:02:53]} 7. Qxg4 {[%clk 0:02:55]}  Qxh1+ {[%clk 0:02:54]} 8. Ke2 {[%clk 0:02:54]}  Nf6 {[%clk 0:02:52]} 9. Qf5 {[%clk 0:02:47]}  e6 {[%clk 0:02:45]} 10. Qb5+ {[%clk 0:02:45]}  Nd7 {[%clk 0:02:39]} 11. Nc3 {[%clk 0:02:43]}  a6 {[%clk 0:02:38]} 12. Qc4 {[%clk 0:02:37]}  O-O-O {[%clk 0:02:31]} 13. b3 {[%clk 0:02:28]}  Ne5 {[%clk 0:02:31]} 14. Qa4 {[%clk 0:02:25]}  Rxd4 {[%clk 0:02:27]} 15. Qxd4 {[%clk 0:02:24]}  Qf3+ {[%clk 0:02:27]} 16. Kf1 {[%clk 0:02:24]}  Qh1+ {[%clk 0:02:23]} 17. Ke2 {[%clk 0:02:23]}  Qf3+ {[%clk 0:02:11]} 18. Kf1 {[%clk 0:02:20]}  Ng4 {[%clk 0:01:59]} 19. h3 {[%clk 0:02:05]}  Nh2+ {[%clk 0:01:28]} 20. Kg1 {[%clk 0:02:02]}  Qc6 {[%clk 0:01:26]} 21. Kxh2 {[%clk 0:02:00]}  Bc5 {[%clk 0:01:20]} 22. Qe4 {[%clk 0:01:59]}  Qd6 {[%clk 0:01:09]} 23. Kg2 {[%clk 0:01:43]}  g5 {[%clk 0:01:06]} 24. Bb2 {[%clk 0:01:40]}  h5 {[%clk 0:01:06]} 25. Nb5 {[%clk 0:01:35]}  axb5 {[%clk 0:01:03]} 26. Bxh8 {[%clk 0:01:35]}  h4 {[%clk 0:01:02]} 27. d4 {[%clk 0:01:29]}  Ba3 {[%clk 0:00:59]} 28. Be5 {[%clk 0:01:28]}  Qe7 {[%clk 0:00:56]} 29. Re1 {[%clk 0:01:27]} 1-0


[Site "https://www.chess.com"]

[Event "Titled Tuesday Blitz February 21 Early 2023"]
[White "Annaberdiyev, Meylis"]
[Black "Lucassen, Mickey"]
[WhiteFideId "14000563"]
[BlackFideId "12919110"]
[WhiteElo "2495"]
[BlackElo "2023"]
[Result "1-0"]
[Round "01"]
[TimeControl "180+2"]
[Date "2023.02.21"]
[WhiteClock "0:01:07"]
[BlackClock "0:00:47"]

1. e4 {[%clk 0:03:00]}  c5 {[%clk 0:02:58]} 2. Nf3 {[%clk 0:02:59]}  d6 {[%clk 0:02:59]} 3. d4 {[%clk 0:02:59]}  cxd4 {[%clk 0:03:00]} 4. Qxd4 {[%clk 0:03:00]}  Nc6 {[%clk 0:02:59]} 5. Bb5 {[%clk 0:03:01]}  Bd7 {[%clk 0:02:59]} 6. Bxc6 {[%clk 0:03:01]}  Bxc6 {[%clk 0:03:00]} 7. Nc3 {[%clk 0:03:01]}  Nf6 {[%clk 0:03:00]} 8. Bg5 {[%clk 0:03:01]}  e6 {[%clk 0:03:00]} 9. O-O-O {[%clk 0:03:01]}  Be7 {[%clk 0:03:01]} 10. Rhe1 {[%clk 0:02:58]}  O-O {[%clk 0:03:01]} 11. Kb1 {[%clk 0:02:58]}  Qa5 {[%clk 0:02:59]} 12. Qd2 {[%clk 0:02:58]}  Rac8 {[%clk 0:02:50]} 13. Nd4 {[%clk 0:02:47]}  Rfd8 {[%clk 0:02:47]} 14. Nd5 {[%clk 0:02:45]}  Qxd2 {[%clk 0:02:30]} 15. Nxe7+ {[%clk 0:02:45]}  Kf8 {[%clk 0:02:30]} 16. Rxd2 {[%clk 0:02:46]}  Kxe7 {[%clk 0:02:30]} 17. f3 {[%clk 0:02:47]}  h6 {[%clk 0:02:29]} 18. Bh4 {[%clk 0:02:47]}  g5 {[%clk 0:02:28]} 19. Bf2 {[%clk 0:02:47]}  Nd7 {[%clk 0:02:25]} 20. b3 {[%clk 0:02:01]}  Ne5 {[%clk 0:02:20]} 21. Red1 {[%clk 0:02:01]}  Be8 {[%clk 0:02:14]} 22. Kb2 {[%clk 0:02:00]}  a6 {[%clk 0:02:13]} 23. h4 {[%clk 0:01:53]}  Nc6 {[%clk 0:02:05]} 24. Nxc6+ {[%clk 0:01:48]}  Rxc6 {[%clk 0:02:02]} 25. Be3 {[%clk 0:01:41]}  f6 {[%clk 0:01:57]} 26. hxg5 {[%clk 0:01:41]}  hxg5 {[%clk 0:01:55]} 27. e5 {[%clk 0:01:41]}  Bg6 {[%clk 0:01:28]} 28. exd6+ {[%clk 0:01:35]}  Kf7 {[%clk 0:01:13]} 29. c4 {[%clk 0:01:34]}  b6 {[%clk 0:01:11]} 30. a4 {[%clk 0:01:30]}  a5 {[%clk 0:01:07]} 31. Kc3 {[%clk 0:01:17]}  e5 {[%clk 0:01:06]} 32. Rd5 {[%clk 0:01:10]}  Ke6 {[%clk 0:01:06]} 33. Rb5 {[%clk 0:01:09]}  Rb8 {[%clk 0:00:49]} 34. d7 {[%clk 0:01:08]}  Rd6 {[%clk 0:00:46]} 35. Rxd6+ {[%clk 0:01:06]}  Kxd6 {[%clk 0:00:47]} 36. Rxb6+ {[%clk 0:01:07]}  Rxb6 {[%clk 0:00:47]} 37. d8=Q+ {[%clk 0:01:07]} 1-0


[Site "https://www.chess.com"]

[Event "Titled Tuesday Blitz February 21 Early 2023"]
[White "Cuenca Jimenez, Jose Fernando"]
[Black "I_KID_you_not"]
[WhiteFideId "2255570"]
[WhiteElo "2535"]
[BlackElo "2364"]
[Result "1-0"]
[Round "01"]
[TimeControl "180+2"]
[Date "2023.02.21"]
[WhiteClock "0:00:02"]
[BlackClock "0:00:01"]

1. c4 {[%clk 0:02:59]}  c5 {[%clk 0:02:59]} 2. Nf3 {[%clk 0:02:58]}  g6 {[%clk 0:02:58]} 3. d4 {[%clk 0:02:57]}  cxd4 {[%clk 0:02:58]} 4. Nxd4 {[%clk 0:02:57]}  Nc6 {[%clk 0:02:58]} 5. e4 {[%clk 0:02:56]}  Nf6 {[%clk 0:02:56]} 6. Nc3 {[%clk 0:02:56]}  d6 {[%clk 0:02:56]} 7. Be2 {[%clk 0:02:56]}  Nxd4 {[%clk 0:02:56]} 8. Qxd4 {[%clk 0:02:56]}  Bg7 {[%clk 0:02:57]} 9. Be3 {[%clk 0:02:55]}  O-O {[%clk 0:02:57]} 10. Qd3 {[%clk 0:02:55]}  Nd7 {[%clk 0:02:52]} 11. Bd4 {[%clk 0:02:50]}  Bxd4 {[%clk 0:02:32]} 12. Qxd4 {[%clk 0:02:49]}  Qb6 {[%clk 0:02:32]} 13. Qd2 {[%clk 0:02:45]}  Nc5 {[%clk 0:02:21]} 14. h4 {[%clk 0:02:26]}  f6 {[%clk 0:02:12]} 15. h5 {[%clk 0:02:20]}  g5 {[%clk 0:02:13]} 16. h6 {[%clk 0:02:18]}  Be6 {[%clk 0:02:08]} 17. O-O {[%clk 0:02:12]}  Kh8 {[%clk 0:01:52]} 18. Rab1 {[%clk 0:02:09]}  a5 {[%clk 0:01:50]} 19. b3 {[%clk 0:02:02]}  Qb4 {[%clk 0:01:47]} 20. Qe3 {[%clk 0:01:58]}  Nd7 {[%clk 0:01:26]} 21. Nb5 {[%clk 0:01:52]}  Qc5 {[%clk 0:01:18]} 22. Qxc5 {[%clk 0:01:49]}  Nxc5 {[%clk 0:01:18]} 23. Nc7 {[%clk 0:01:50]}  Rac8 {[%clk 0:01:18]} 24. Nxe6 {[%clk 0:01:38]}  Nxe6 {[%clk 0:01:17]} 25. Rfd1 {[%clk 0:01:37]}  Nc5 {[%clk 0:01:02]} 26. Bg4 {[%clk 0:01:30]}  Ra8 {[%clk 0:00:58]} 27. f3 {[%clk 0:01:28]}  Kg8 {[%clk 0:00:55]} 28. Kf2 {[%clk 0:01:25]}  Kf7 {[%clk 0:00:55]} 29. Bf5 {[%clk 0:01:22]}  Rh8 {[%clk 0:00:53]} 30. Bg4 {[%clk 0:01:12]}  Rad8 {[%clk 0:00:40]} 31. a3 {[%clk 0:01:09]}  e6 {[%clk 0:00:37]} 32. b4 {[%clk 0:01:08]}  axb4 {[%clk 0:00:38]} 33. axb4 {[%clk 0:01:09]}  Na6 {[%clk 0:00:38]} 34. Ke3 {[%clk 0:01:04]}  Ke7 {[%clk 0:00:38]} 35. Rdc1 {[%clk 0:00:39]}  Rc8 {[%clk 0:00:33]} 36. Kd4 {[%clk 0:00:38]}  Rc7 {[%clk 0:00:30]} 37. Rc3 {[%clk 0:00:24]}  Rhc8 {[%clk 0:00:23]} 38. b5 {[%clk 0:00:25]}  Nc5 {[%clk 0:00:20]} 39. Ra1 {[%clk 0:00:24]}  b6 {[%clk 0:00:19]} 40. Ke3 {[%clk 0:00:23]}  Rf8 {[%clk 0:00:18]} 41. Kf2 {[%clk 0:00:19]}  f5 {[%clk 0:00:17]} 42. exf5 {[%clk 0:00:18]}  exf5 {[%clk 0:00:17]} 43. Bh5 {[%clk 0:00:18]}  Rf6 {[%clk 0:00:17]} 44. Re1+ {[%clk 0:00:16]}  Ne6 {[%clk 0:00:17]} 45. g3 {[%clk 0:00:12]}  Rxh6 {[%clk 0:00:17]} 46. g4 {[%clk 0:00:11]}  f4 {[%clk 0:00:16]} 47. Ra1 {[%clk 0:00:07]}  Nc5 {[%clk 0:00:12]} 48. Ra8 {[%clk 0:00:07]}  Re6 {[%clk 0:00:11]} 49. Re8+ {[%clk 0:00:06]}  Kf6 {[%clk 0:00:11]} 50. Rf8+ {[%clk 0:00:06]}  Kg7 {[%clk 0:00:10]} 51. Rf5 {[%clk 0:00:05]}  h6 {[%clk 0:00:10]} 52. Rd5 {[%clk 0:00:05]}  Na4 {[%clk 0:00:08]} 53. Rc2 {[%clk 0:00:05]}  Rc5 {[%clk 0:00:07]} 54. Rcd2 {[%clk 0:00:03]}  Rxd5 {[%clk 0:00:07]} 55. cxd5 {[%clk 0:00:03]}  Re5 {[%clk 0:00:06]} 56. Rc2 {[%clk 0:00:02]}  Rxd5 {[%clk 0:00:06]} 57. Rc7+ {[%clk 0:00:02]}  Kf6 {[%clk 0:00:06]} 58. Rh7 {[%clk 0:00:02]}  Nb2 {[%clk 0:00:03]} 59. Rxh6+ {[%clk 0:00:02]}  Ke5 {[%clk 0:00:03]} 60. Rh8 {[%clk 0:00:02]}  Kd4 {[%clk 0:00:03]} 61. Re8 {[%clk 0:00:02]}  Nd3+ {[%clk 0:00:03]} 62. Ke2 {[%clk 0:00:02]}  Re5+ {[%clk 0:00:01]} 63. Kd2 {[%clk 0:00:02]} 1-0


[Site "https://www.chess.com"]

[Event "Titled Tuesday Blitz February 21 Early 2023"]
[White "Matveeva, Olga"]
[Black "Tan, Jun Ying"]
[WhiteFideId "24107018"]
[BlackFideId "5710413"]
[WhiteElo "2128"]
[BlackElo "2307"]
[Result "0-1"]
[Round "01"]
[TimeControl "180+2"]
[Date "2023.02.21"]
[WhiteClock "0:00:06"]
[BlackClock "0:00:34"]

1. d4 {[%clk 0:02:59]}  d5 {[%clk 0:02:59]} 2. c4 {[%clk 0:02:58]}  c6 {[%clk 0:02:59]} 3. Nf3 {[%clk 0:02:58]}  Nf6 {[%clk 0:02:59]} 4. e3 {[%clk 0:02:58]}  Bf5 {[%clk 0:02:56]} 5. Nc3 {[%clk 0:02:57]}  a6 {[%clk 0:02:57]} 6. Bd2 {[%clk 0:02:49]}  e6 {[%clk 0:02:44]} 7. Nh4 {[%clk 0:02:48]}  Bg4 {[%clk 0:02:39]} 8. Qb3 {[%clk 0:02:35]}  b5 {[%clk 0:02:29]} 9. cxd5 {[%clk 0:02:24]}  cxd5 {[%clk 0:02:28]} 10. h3 {[%clk 0:02:23]}  Bh5 {[%clk 0:02:28]} 11. g4 {[%clk 0:02:18]}  Bg6 {[%clk 0:02:21]} 12. Nxg6 {[%clk 0:02:16]}  hxg6 {[%clk 0:02:22]} 13. Bg2 {[%clk 0:02:16]}  Nc6 {[%clk 0:02:19]} 14. Rc1 {[%clk 0:02:10]}  Na5 {[%clk 0:02:18]} 15. Qd1 {[%clk 0:02:09]}  Nc4 {[%clk 0:02:18]} 16. b3 {[%clk 0:02:04]}  Nxd2 {[%clk 0:02:18]} 17. Qxd2 {[%clk 0:02:05]}  Bb4 {[%clk 0:02:14]} 18. Qd3 {[%clk 0:01:46]}  Rc8 {[%clk 0:02:11]} 19. O-O {[%clk 0:01:41]}  Ba3 {[%clk 0:01:56]} 20. Rc2 {[%clk 0:01:35]}  O-O {[%clk 0:01:55]} 21. Nb1 {[%clk 0:01:25]}  Bd6 {[%clk 0:01:37]} 22. Rfc1 {[%clk 0:01:23]}  Qd7 {[%clk 0:01:36]} 23. Rxc8 {[%clk 0:01:15]}  Rxc8 {[%clk 0:01:36]} 24. Rxc8+ {[%clk 0:01:15]}  Qxc8 {[%clk 0:01:37]} 25. Qc3 {[%clk 0:01:15]}  Qd7 {[%clk 0:01:33]} 26. Nd2 {[%clk 0:01:11]}  Kh7 {[%clk 0:01:18]} 27. b4 {[%clk 0:01:02]}  Qb7 {[%clk 0:01:13]} 28. a3 {[%clk 0:00:55]}  Nd7 {[%clk 0:01:12]} 29. Nb3 {[%clk 0:00:53]}  Nb6 {[%clk 0:01:09]} 30. Na5 {[%clk 0:00:39]}  Qd7 {[%clk 0:01:05]} 31. Nb3 {[%clk 0:00:26]}  Nc4 {[%clk 0:01:05]} 32. Nc5 {[%clk 0:00:23]}  Qc8 {[%clk 0:01:02]} 33. Bf1 {[%clk 0:00:19]}  e5 {[%clk 0:00:57]} 34. Bxc4 {[%clk 0:00:16]}  dxc4 {[%clk 0:00:52]} 35. dxe5 {[%clk 0:00:16]}  Bxc5 {[%clk 0:00:52]} 36. bxc5 {[%clk 0:00:15]}  Qxc5 {[%clk 0:00:53]} 37. Kf1 {[%clk 0:00:13]}  a5 {[%clk 0:00:51]} 38. Ke2 {[%clk 0:00:11]}  b4 {[%clk 0:00:51]} 39. axb4 {[%clk 0:00:11]}  axb4 {[%clk 0:00:52]} 40. Qd4 {[%clk 0:00:12]}  Qb5 {[%clk 0:00:49]} 41. Kd2 {[%clk 0:00:11]}  c3+ {[%clk 0:00:49]} 42. Kc2 {[%clk 0:00:10]}  Qe2+ {[%clk 0:00:48]} 43. Kb3 {[%clk 0:00:09]}  Qb2+ {[%clk 0:00:48]} 44. Kc4 {[%clk 0:00:07]}  Qa2+ {[%clk 0:00:35]} 45. Kxb4 {[%clk 0:00:07]}  c2 {[%clk 0:00:35]} 46. Qd2 {[%clk 0:00:06]}  Qb1+ {[%clk 0:00:34]} 0-1


[Site "https://www.chess.com"]

[Event "Titled Tuesday Blitz February 21 Early 2023"]
[White "Aydincelebi, Kagan"]
[Black "Torres Boch, Jose Francisco"]
[WhiteFideId "6361102"]
[BlackFideId "2278383"]
[WhiteElo "2280"]
[BlackElo "2180"]
[Result "1-0"]
[Round "01"]
[TimeControl "180+2"]
[Date "2023.02.21"]
[WhiteClock "0:00:26"]
[BlackClock "0:00:05"]

1. e4 {[%clk 0:03:00]}  c5 {[%clk 0:02:57]} 2. Nf3 {[%clk 0:03:01]}  d6 {[%clk 0:02:57]} 3. Bb5+ {[%clk 0:03:01]}  Nd7 {[%clk 0:02:57]} 4. O-O {[%clk 0:03:00]}  a6 {[%clk 0:02:57]} 5. Bd3 {[%clk 0:02:59]}  Ngf6 {[%clk 0:02:56]} 6. Re1 {[%clk 0:02:59]}  g6 {[%clk 0:02:52]} 7. c3 {[%clk 0:02:59]}  Bg7 {[%clk 0:02:52]} 8. Bc2 {[%clk 0:02:59]}  e5 {[%clk 0:02:52]} 9. d4 {[%clk 0:03:00]}  cxd4 {[%clk 0:02:51]} 10. cxd4 {[%clk 0:03:00]}  exd4 {[%clk 0:02:45]} 11. Qxd4 {[%clk 0:02:54]}  O-O {[%clk 0:02:37]} 12. Qxd6 {[%clk 0:02:47]}  Ng4 {[%clk 0:02:22]} 13. Nc3 {[%clk 0:02:39]}  Qa5 {[%clk 0:01:44]} 14. Qd2 {[%clk 0:01:29]}  Nde5 {[%clk 0:01:26]} 15. Nxe5 {[%clk 0:01:29]}  Bxe5 {[%clk 0:01:24]} 16. h3 {[%clk 0:01:28]}  Nf6 {[%clk 0:01:04]} 17. f4 {[%clk 0:01:14]}  Rd8 {[%clk 0:00:52]} 18. Qf2 {[%clk 0:00:53]}  Bc7 {[%clk 0:00:43]} 19. Be3 {[%clk 0:00:45]}  Qb4 {[%clk 0:00:40]} 20. Rab1 {[%clk 0:00:41]}  b5 {[%clk 0:00:24]} 21. Bc5 {[%clk 0:00:32]}  Qa5 {[%clk 0:00:17]} 22. b4 {[%clk 0:00:28]}  Qa3 {[%clk 0:00:15]} 23. Rb3 {[%clk 0:00:29]}  Qxb3 {[%clk 0:00:09]} 24. Bxb3 {[%clk 0:00:30]}  Bb7 {[%clk 0:00:09]} 25. Be7 {[%clk 0:00:28]}  Nd7 {[%clk 0:00:05]} 26. Bxd8 {[%clk 0:00:26]} 1-0


[Site "https://www.chess.com"]

[Event "Titled Tuesday Blitz February 21 Early 2023"]
[White "Kovacsy, Barnabas"]
[Black "Domingo Nunez, Ruben"]
[WhiteFideId "769290"]
[BlackFideId "22245570"]
[WhiteElo "2245"]
[BlackElo "2416"]
[Result "1-0"]
[Round "01"]
[TimeControl "180+2"]
[Date "2023.02.21"]
[WhiteClock "0:00:18"]
[BlackClock "0:00:01"]

1. e4 {[%clk 0:03:00]}  Nc6 {[%clk 0:02:56]} 2. Nf3 {[%clk 0:02:46]}  d5 {[%clk 0:02:56]} 3. exd5 {[%clk 0:02:45]}  Qxd5 {[%clk 0:02:57]} 4. Nc3 {[%clk 0:02:45]}  Qa5 {[%clk 0:02:58]} 5. Bc4 {[%clk 0:02:42]}  Bg4 {[%clk 0:02:53]} 6. d3 {[%clk 0:02:28]}  Nf6 {[%clk 0:02:51]} 7. Bd2 {[%clk 0:02:28]}  Qh5 {[%clk 0:02:50]} 8. Bf4 {[%clk 0:01:43]}  e5 {[%clk 0:02:17]} 9. Qe2 {[%clk 0:01:35]}  Nd4 {[%clk 0:01:20]} 10. Qxe5+ {[%clk 0:01:34]}  Qxe5+ {[%clk 0:01:19]} 11. Nxe5 {[%clk 0:01:34]}  Nxc2+ {[%clk 0:01:19]} 12. Kd2 {[%clk 0:01:33]}  Nxa1 {[%clk 0:01:19]} 13. Bxf7+ {[%clk 0:01:30]}  Ke7 {[%clk 0:01:16]} 14. Re1 {[%clk 0:01:19]}  Kd8 {[%clk 0:00:54]} 15. Nxg4 {[%clk 0:01:12]}  Be7 {[%clk 0:00:43]} 16. Nxf6 {[%clk 0:00:54]}  Bxf6 {[%clk 0:00:43]} 17. Bd5 {[%clk 0:00:55]}  c6 {[%clk 0:00:43]} 18. Be4 {[%clk 0:00:54]}  Rf8 {[%clk 0:00:41]} 19. Be3 {[%clk 0:00:53]}  a5 {[%clk 0:00:35]} 20. Rxa1 {[%clk 0:00:51]}  a4 {[%clk 0:00:35]} 21. a3 {[%clk 0:00:50]}  Ra5 {[%clk 0:00:36]} 22. h3 {[%clk 0:00:46]}  Kc7 {[%clk 0:00:31]} 23. Bxh7 {[%clk 0:00:39]}  Bg5 {[%clk 0:00:21]} 24. Be4 {[%clk 0:00:32]}  Rxf2+ {[%clk 0:00:20]} 25. Ne2 {[%clk 0:00:29]}  Rb5 {[%clk 0:00:20]} 26. Bxg5 {[%clk 0:00:27]}  Rxb2+ {[%clk 0:00:16]} 27. Ke3 {[%clk 0:00:27]}  Rbxe2+ {[%clk 0:00:14]} 28. Kd4 {[%clk 0:00:28]}  Kd6 {[%clk 0:00:11]} 29. Bh4 {[%clk 0:00:27]}  c5+ {[%clk 0:00:05]} 30. Kc4 {[%clk 0:00:26]}  Rc2+ {[%clk 0:00:06]} 31. Kb5 {[%clk 0:00:26]}  Rf8 {[%clk 0:00:01]} 32. Bg3+ {[%clk 0:00:24]}  Ke6 {[%clk 0:00:01]} 33. Rb1 {[%clk 0:00:22]}  Rc3 {[%clk 0:00:01]} 34. Bxb7 {[%clk 0:00:18]}  c4 {[%clk 0:00:01]} 35. dxc4 {[%clk 0:00:18]}  Rxg3 {[%clk 0:00:01]} 36. Bd5+ {[%clk 0:00:17]}  Kd6 {[%clk 0:00:01]} 37. Re1 {[%clk 0:00:18]}  Rb8+ {[%clk 0:00:01]} 38. Kxa4 {[%clk 0:00:18]} 1-0


[Site "https://www.chess.com"]